[Event "SixDays Budapest March GM-A 2023"]
[Site "Budapest"]
[Date "2023.03.26"]
[Round "4.4"]
[White "Horvath, Adam"]
[Black "Berczes, David"]
[Result "1/2-1/2"]
[ECO "C47"]
[WhiteElo "2458"]
[BlackElo "2427"]
[Annotator "TA"]
[PlyCount "44"]
[EventDate "2023.03.24"]
[EventType "tourn"]
[EventCountry "HUN"]
[SourceTitle "playchess.com"]
[Source "ChessBase"]
[SourceQuality "1"]
[TimeControl "5400+30"]

{[%evp 22,31,0,-8,10,10,10,14,13,6,11,12]} 1. e4 e5 2. Nf3 Nc6 3. Nc3 Nf6 4. d4 exd4 5. Nxd4 Bb4 6. Nxc6 bxc6 7. Bd3 d5 8. exd5 cxd5 9. O-O O-O 10. Bg5 c6 11. h3 Bd6 12. Qf3 {The position is equal.} h6 {C47: Scotch Four Knights and Four Knights with 4 g3.} 13. Bxf6 Qxf6 14. Qxf6 gxf6 15. Ne2 Rb8 16. b3 {[#] An uneventful encounter.   Weighted Error Value: White=0.00 (flawless) /Black=0.12 (very precise)} {Predecessor:} Re8 $146 17. Ng3 Kf8 18. Nf5 Bxf5 19. Bxf5 Re5 20. Bd3 Bb4 21. f4 Re3 22. Kh2 Ke7 {½-½ Hovhannisyan,R (2669)-Bartel,M (2560) Lindores Abbey Blitz Tal Memorial 2021 (6.20)} 1/2-1/2

[Event "SixDays Budapest March GM-A 2023"]
[Site "Budapest"]
[Date "2023.03.26"]
[Round "4.5"]
[White "Kushagra Mohan"]
[Black "Leszko, Bence"]
[Result "1/2-1/2"]
[ECO "C43"]
[WhiteElo "2396"]
[BlackElo "2283"]
[Annotator "TA"]
[PlyCount "42"]
[EventDate "2023.03.24"]
[EventType "tourn"]
[EventCountry "HUN"]
[SourceTitle "playchess.com"]
[Source "ChessBase"]
[SourceQuality "1"]
[TimeControl "5400+30"]

{[%evp 10,42,29,-17,-6,-17,-17,-8,-12,-5,-14,-13,0,0,0,0,0,0,81,10,15,16,6,10,-53,-53,-57,-107,-120,-105,-116,-109,-120,-104,-108]} 1. e4 {[%emt 0:00:31]} e5 {[%emt 0:13:09]} 2. Nf3 {[%emt 0:00:02]} Nf6 {[%emt 0:00:05]} 3. d4 {[%emt 0:00:03]} Nxe4 {[%emt 0:00:09]} 4. Bd3 {[%emt 0:00:03]} d5 {[%emt 0:00:06]} 5. Nxe5 {[%emt 0:00:03]} Nd7 {[%emt 0:00:08]} 6. Nc3 {[%emt 0:00:08]} (6. Nxd7 $142 Bxd7 7. O-O) 6... Bb4 {[%emt 0:00:04] C43: Petroff Defence: 3 d4.} 7. O-O {[%emt 0:03:53]} Nxe5 {[%emt 0:00:13]} 8. dxe5 {[%emt 0:00:01]} Nxc3 {[%emt 0:00:07] The position is equal.} 9. bxc3 {[%emt 0:00:03]} Bxc3 {[%emt 0:00:07]} 10. Rb1 {[%emt 0:00:01]} Qh4 {[%emt 0:00:12]} (10... Bxe5 $2 11. Re1 $18) (10... O-O $5) 11. f4 {[%emt 0:07:00]} O-O {[%emt 0:15:25]} 12. Rb3 {[%emt 0:26:28]} Bd4+ {[%emt 0:12:44]} 13. Kh1 {[%emt 0:00:03] [#]} f6 $146 {[%emt 0:29:46] [#]} (13... c6 $11 {remains equal.}) ({Predecessor:} 13... Bb6 14. f5 c5 15. Rf4 Qh6 16. Rg4 Qc6 17. Rxg7+ Kxg7 18. f6+ {1-0 Korneev,O (2601)-Humeau,C (2100) Corsica Masters op rapid 2005 (2)}) 14. Bxh7+ $1 {[%emt 0:01:49]} Qxh7 $11 {[%emt 0:00:01]} 15. Qxd4 {[%emt 0:00:02]} Qe4 $132 {[%emt 0:00:12][%mdl 2048] Black is not keeping still. Black is weak on the dark squares} 16. Bb2 {[%emt 0:00:47]} Qxd4 {[%emt 0:04:59]} 17. Bxd4 {[%emt 0:00:12]} b6 $1 {[%emt 0:00:04]} 18. Rg3 {[%emt 0:14:15]} (18. exf6 $15 gxf6 19. c3) 18... c5 $17 {[%emt 0:01:22] Black is better.} 19. Bb2 {[%emt 0:00:12]} d4 {[%emt 0:00:31]} 20. exf6 {[%emt 0:00:05]} Rxf6 {[%emt 0:00:04]} 21. c3 {[%emt 0:00:02]} Ba6 {[%emt 0:00:05] Weighted Error Value: White=0.14 (very precise) /Black=0.12 (very precise)} 1/2-1/2

[Event "SixDays Budapest March GM-A 2023"]
[Site "Budapest"]
[Date "2023.03.27"]
[Round "5.1"]
[White "Leszko, Bence"]
[Black "Rosh Jain"]
[Result "0-1"]
[ECO "A05"]
[WhiteElo "2283"]
[BlackElo "2325"]
[Annotator "TA"]
[PlyCount "68"]
[EventDate "2023.03.24"]
[EventType "tourn"]
[EventCountry "HUN"]
[SourceTitle "playchess.com"]
[Source "ChessBase"]
[SourceQuality "1"]
[TimeControl "5400+30"]

{[%evp 18,68,15,16,41,44,36,40,52,48,97,42,52,43,45,12,17,0,41,0,17,0,52,9,18,-135,-113,-100,-104,-106,-105,-101,-106,-94,-86,-168,-140,-173,-180,-318,-306,-290,-243,-572,-566,-829,-814,-981,-898,-1206,-1209,-1022,-935]} 1. Nf3 {[%emt 0:08:52]} Nf6 {[%emt 0:00:43]} 2. c4 {[%emt 0:00:05]} e6 {[%emt 0:00:03]} 3. Nc3 {[%emt 0:00:05]} d5 {[%emt 0:00:05]} 4. e3 {[%emt 0:00:06]} c5 {[%emt 0:00:19]} 5. cxd5 {[%emt 0:00:08]} exd5 {[%emt 0:00:05]} 6. d4 {[%emt 0:00:05]} Nc6 {[%emt 0:00:23]} 7. Be2 {[%emt 0:00:09]} Be7 {[%emt 0:00:35]} 8. dxc5 {[%emt 0:00:08]} Bxc5 {[%emt 0:00:15]} 9. O-O {[%emt 0:00:35]} O-O {[%emt 0:00:09]} 10. b3 {[%emt 0:00:06]} b6 {[%emt 0:02:21] D32: Tarrasch Defence: Sidelines and lines without g3.} 11. Nb5 {[%emt 0:04:30]} Bb7 {[%emt 0:06:04]} 12. Bb2 {[%emt 0:00:09] [#]} Rc8 $146 {[%emt 0:01:52] White is slightly better.} ({Predecessor:} 12... Ne4 13. a3 a5 14. Nbd4 Nxd4 15. Nxd4 Ng5 16. Nf5 Ne6 17. Qd2 Qg5 18. Ng3 d4 19. Bxd4 Nxd4 20. Rae1 Nxe2+ 21. Qxe2 {0-1 Fantinati,N (1517)-Casante,T Hebraica op 25th 2018 (5)}) 13. Nbd4 {[%emt 0:01:55]} Re8 {[%emt 0:07:23]} (13... Ne4 $14) 14. Nxc6 {[%emt 0:03:19]} (14. Bb5 $16) 14... Bxc6 $14 {[%emt 0:00:13]} 15. Nd4 {[%emt 0:00:17]} Bd7 {[%emt 0:05:02]} 16. Qd3 {[%emt 0:03:07]} Ne4 {[%emt 0:05:37]} 17. Rad1 {[%emt 0:02:24]} a6 {[%emt 0:10:58]} 18. Qb1 {[%emt 0:09:57]} b5 {[%emt 0:06:03]} 19. Qa1 {[%emt 0:00:56]} (19. Nf3 $5 {[%cal Rd1d5]}) 19... f6 {[%emt 0:06:01]} ({Black should play} 19... Qg5 $11) 20. a4 {[%emt 0:03:59]} (20. Bh5 $5 {[%cal Rh5e8]}) 20... Qb6 {[%emt 0:02:16]} 21. Nf3 $2 {[%emt 0:01:44]} (21. axb5 $11 axb5 22. Bh5) 21... bxa4 {[%emt 0:03:21]} 22. bxa4 {[%emt 0:01:28] [#]} Bxe3 $1 {[%emt 0:03:21] Black is much more active.} 23. Bd4 {[%emt 0:05:56]} Bxd4 {[%emt 0:00:21]} 24. Qxd4 {[%emt 0:00:06]} Qxd4 {[%emt 0:02:13]} 25. Rxd4 {[%emt 0:00:12]} Nc5 {[%emt 0:00:26][%csl LRa4,LRe2]} 26. Bd3 {[%emt 0:06:02]} (26. Bd1 $17 {keeps fighting.}) 26... Bxa4 {[%emt 0:01:37]} 27. Bf5 {[%emt 0:24:59]} Rcd8 {[%emt 0:00:40]} 28. Rh4 {[%emt 0:04:05]} (28. g3 $142) 28... g6 $19 {[%emt 0:00:39][%cal Bg7g6,Bg6f5][%mdl 32]} 29. Rc1 {[%emt 0:00:00]} Ne4 {[%emt 0:01:58]} 30. Rc7 $2 {[%emt 0:09:17]} (30. Bh3 {is more resistant.}) 30... gxf5 {[%emt 0:04:09] Black is clearly winning.} 31. Rhxh7 {[%emt 0:00:04] Threatening mate with Rcg7+.} Ng5 $1 {[%emt 0:00:23]} 32. Rhg7+ {[%emt 0:01:36] [#]} Kh8 $1 {[%emt 0:00:05] Hoping for ...d4.} 33. h4 {[%emt 0:01:38]} Nxf3+ {[%emt 0:00:04]} 34. gxf3 {[%emt 0:00:11] [#]} Rg8 $1 {[%emt 0:00:03] Weighted Error Value: White=0.84/Black=0.13 (very precise)} 0-1

[Event "SixDays Budapest March GM-A 2023"]
[Site "Budapest"]
[Date "2023.03.27"]
[Round "5.2"]
[White "Berczes, David"]
[Black "Kushagra Mohan"]
[Result "1/2-1/2"]
[ECO "A05"]
[WhiteElo "2427"]
[BlackElo "2396"]
[Annotator "TA"]
[PlyCount "91"]
[EventDate "2023.03.24"]
[EventType "tourn"]
[EventCountry "HUN"]
[SourceTitle "playchess.com"]
[Source "ChessBase"]
[SourceQuality "1"]
[TimeControl "5400+30"]

{[%evp 9,90,17,22,25,27,18,41,27,41,43,50,40,35,33,18,10,32,7,35,38,41,33,32,-4,43,54,58,62,51,47,61,57,83,57,57,0,0,0,0,0,0,-6,0,-8,-5,-22,-16,-14,-19,-67,-72,-61,-53,-80,-104,-83,-52,-100,-98,-93,-67,-65,-54,-93,-12,-26,-28,-47,0,0,0,0,0,0,0,0,0,0,0,0,0,0,0]} 1. Nf3 {[%emt 0:19:01]} Nf6 {[%emt 0:00:39]} 2. c4 {[%emt 0:00:27]} g6 {[%emt 0:00:07]} 3. Nc3 {[%emt 0:00:14]} d5 {[%emt 0:00:04]} 4. cxd5 {[%emt 0:00:47]} Nxd5 {[%emt 0:00:03]} 5. h4 {[%emt 0:00:45]} Bg7 6. e4 {[%emt 0:00:56] A16: English Opening: 1...Nf6 with ...d5.} Nxc3 {[%emt 0:00:15]} 7. dxc3 {[%emt 0:00:12]} Qxd1+ {[%emt 0:00:16]} 8. Kxd1 {[%emt 0:00:05] White is slightly better.} Bg4 {[%emt 0:00:34]} 9. Kc2 {[%emt 0:00:43]} Nc6 {[%emt 0:00:25] [#]} 10. Bf4 $146 {[%emt 0:07:54]} ({Predecessor:} 10. Bb5 O-O-O 11. Be3 Bxf3 12. gxf3 a6 13. Bxc6 bxc6 14. h5 Rd6 15. f4 e6 16. Rag1 {0-1 Bachmann,A (2599)-Mikhalevski,V (2560) Titled Tuesday intern op 10th Nov blitz 2020 (5)}) 10... O-O-O {[%emt 0:05:41]} 11. a4 {[%emt 0:18:14]} Rhf8 {[%emt 0:01:27]} 12. Bc4 {[%emt 0:10:56]} h6 {[%emt 0:02:43]} (12... Na5 $5 {[%cal Ra5c4]} 13. Bd5 Bd7 $11) 13. Rhe1 {[%emt 0:05:16]} Bd7 {[%emt 0:12:05]} 14. b4 {[%emt 0:07:51][%cal Bb2b4,Bb4b5][%mdl 32]} e5 {[%emt 0:03:02]} 15. Be3 {[%emt 0:08:04]} f5 {[%emt 0:00:19]} 16. Bc5 {[%emt 0:03:13]} Rh8 {[%emt 0:02:21]} (16... Rf6 $11) 17. Bd5 $14 {[%emt 0:06:44]} b6 {[%emt 0:12:42]} 18. b5 $1 {[%emt 0:00:16]} Nb8 {[%emt 0:00:03]} 19. Be7 {[%emt 0:02:26]} Rde8 {[%emt 0:00:26]} 20. Ba3 {[%emt 0:00:04] White is much more active. The black rooks are badly placed.} fxe4 {[%emt 0:01:41]} 21. Bxe4 {[%emt 0:01:17]} Bf5 {[%emt 0:00:27] [#]} 22. h5 {[%emt 0:02:33]} Bxe4+ $11 {[%emt 0:00:57]} 23. Rxe4 {[%emt 0:00:01]} gxh5 {[%emt 0:00:01]} 24. a5 {[%emt 0:01:21]} Nd7 {[%emt 0:01:28]} 25. Nd2 {[%emt 0:00:53]} Rhg8 {[%emt 0:00:31]} 26. axb6 {[%emt 0:00:47]} axb6 {[%emt 0:00:24]} 27. Rc4 {[%emt 0:00:27] Bd6 would be deadly.} Kb7 {[%emt 0:05:41]} 28. Ne4 {[%emt 0:00:05]} Nf6 {[%emt 0:01:19]} 29. Bd6 {[%emt 0:02:38]} Nxe4 $15 {[%emt 0:03:14]} ({Don't take} 29... cxd6 30. Nxd6+ Kb8 31. Rca4 $16) 30. Rxc7+ {[%emt 0:00:05]} Kb8 {[%emt 0:00:01]} 31. Rd7+ {[%emt 0:01:13]} Nxd6 {[%emt 0:00:20]} 32. Rxd6 {[%emt 0:00:04]} Re7 {[%emt 0:02:06]} 33. Rxb6+ {[%emt 0:00:02]} Rb7 {[%emt 0:00:00]} 34. Rba6 {[%emt 0:00:30] [#] Threatens to win with Ra8+.} Kc7 $1 {[%emt 0:00:52]} (34... Rxb5 $2 35. Ra8+ Kb7 36. Rxg8 $18) 35. Rc6+ $1 {[%emt 0:01:10]} Kd7 $1 {[%emt 0:00:30]} 36. c4 {[%emt 0:00:21]} Rc7 {[%emt 0:02:13]} (36... Rf8 $17 37. f3 Ke7) 37. Rxc7+ {[%emt 0:00:32]} (37. Rg6 {looks sharper.} Ke7 38. b6 Rxc4+ 39. Kb3) 37... Kxc7 $11 {[%emt 0:00:01][%mdl 4096] Endgame KRB-KR} 38. Ra6 {[%emt 0:00:46]} Bf8 {[%emt 0:02:11]} (38... Rb8 $15 {feels stronger.}) 39. Ra8 $1 {[%emt 0:00:14] The position is equal.} e4 {[%emt 0:00:37]} 40. Kd1 {[%emt 0:00:41]} h4 {[%emt 0:00:32]} 41. Ke2 $1 {[%emt 0:00:36]} e3 {[%emt 0:00:41]} 42. c5 {[%emt 0:00:18]} exf2 {[%emt 0:04:49] aiming for ...Kb7.} 43. c6 {[%emt 0:00:05]} Kb6 {[%emt 0:03:09][%cal Og8g2] ...Rxg2! is the strong threat.} 44. Rb8+ {[%emt 0:00:16]} Kc7 {[%emt 0:00:05]} 45. Ra8 {[%emt 0:00:23]} Kb6 {[%emt 0:00:24]} 46. Rb8+ {[%emt 0:00:51] Weighted Error Value: White=0.08 (flawless) /Black=0.08 (flawless)} 1/2-1/2

[Event "SixDays Budapest March GM-A 2023"]
[Site "Budapest"]
[Date "2023.03.27"]
[Round "5.3"]
[White "Pfreundt, Jakob"]
[Black "Horvath, Adam"]
[Result "1/2-1/2"]
[ECO "B32"]
[WhiteElo "2407"]
[BlackElo "2458"]
[Annotator "TA"]
[PlyCount "297"]
[EventDate "2023.03.24"]
[EventType "tourn"]
[EventCountry "HUN"]
[SourceTitle "playchess.com"]
[Source "ChessBase"]
[SourceQuality "1"]
[TimeControl "5400+30"]

{[%evp 133,297,-8,0,0,0,0,0,0,40,42,1142,0,0,0,0,0,0,0,0,0,0,0,0,0,0,0,0,0,0,-8,0,0,0,0,0,-8,-8,-8,-7,-7,0,-8,0,-7,0,0,0,0,0,0,0,0,0,0,0,0,0,-7,-7,-8,-8,-8,-8,-8,0,-7,0,0,0,0,0,0,0,0,0,0,0,-8,0,0,0,0,0,-8,0,0,0,-8,-8,-8,-8,-8,0,-8,-8,-8,-8,-8,-8,-8,-8,-8,-8,-8,-8,-8,-8,-8,-8,-8,-8,-8,0,0,0,-8,0,0,0,0,0,0,0,0,0,0,0,0,0,0,0,0,0,-8,0,0,0,0,0,0,0,0,0,0,0,0,0,-8,0,0,0,0,0,0,0,0,0,0,0,0,0,0,0,-8,-8,-8]} 1. e4 {[%emt 0:03:59]} c5 {[%emt 0:00:36]} 2. Nf3 {[%emt 0:00:05]} Nc6 {[%emt 0:00:04]} 3. d4 {[%emt 0:00:08]} cxd4 {[%emt 0:00:05]} 4. Nxd4 {[%emt 0:00:08]} Qb6 {[%emt 0:00:02]} 5. Nb3 {[%emt 0:00:46]} Nf6 {[%emt 0:00:04]} 6. Nc3 {[%emt 0:00:16]} e6 {[%emt 0:00:03]} 7. Bd3 {[%emt 0:00:39]} a6 {[%emt 0:00:18]} 8. Qe2 {[%emt 0:01:45]} d6 {[%emt 0:02:44]} 9. Be3 {[%emt 0:05:49]} Qc7 {[%emt 0:00:12]} 10. f4 {[%emt 0:00:26]} b5 {[%emt 0:03:29]} 11. O-O-O {[%emt 0:06:05]} Be7 {[%emt 0:09:59]} 12. g4 {[%emt 0:05:06]} Bb7 {[%emt 0:00:18]} 13. g5 {[%emt 0:27:18]} Nd7 {[%emt 0:00:14]} 14. f5 {[%emt 0:14:27]} Nb4 {[%emt 0:23:42]} 15. fxe6 {[%emt 0:02:28]} fxe6 {[%emt 0:00:10]} 16. Nd4 {[%emt 0:07:39]} Nc5 {[%emt 0:04:31]} 17. a3 {[%emt 0:01:15]} Nbxd3+ {[%emt 0:27:07]} 18. cxd3 {[%emt 0:00:03]} O-O {[%emt 0:13:21]} 19. Kb1 {[%emt 0:00:55]} Bc8 {[%emt 0:00:12]} 20. Rc1 {[%emt 0:03:46]} Qb7 {[%emt 0:01:48]} 21. b4 {[%emt 0:01:49]} Na4 {[%emt 0:02:54]} 22. Qa2 {[%emt 0:05:34]} d5 {[%emt 0:02:03]} 23. Nxa4 {[%emt 0:01:30]} bxa4 {[%emt 0:00:10]} 24. Nc6 {[%emt 0:01:26]} Rf3 {[%emt 0:01:58]} 25. Qe2 {[%emt 0:00:32]} dxe4 {[%emt 0:00:50]} 26. dxe4 {[%emt 0:00:06]} Rf7 {[%emt 0:00:24]} 27. Rhf1 {[%emt 0:02:03]} Rxf1 {[%emt 0:00:31]} 28. Qxf1 {[%emt 0:00:11]} Bf8 {[%emt 0:00:37]} 29. Qc4 {[%emt 0:02:48]} Bd7 {[%emt 0:00:43]} 30. Na5 {[%emt 0:00:37]} Qb8 {[%emt 0:00:43]} 31. Qc7 {[%emt 0:03:12]} Qb5 {[%emt 0:00:22]} 32. Qc4 {[%emt 0:00:14]} Qb8 {[%emt 0:05:30]} 33. Qc7 {[%emt 0:00:06]} Qe8 {[%emt 0:00:19]} 34. Qe5 {[%emt 0:00:57]} Bb5 {[%emt 0:00:35]} 35. Bd4 {[%emt 0:02:24]} Rd8 {[%emt 0:00:44]} 36. Nb7 {[%emt 0:00:33]} Rd7 {[%emt 0:00:17]} 37. Nc5 {[%emt 0:00:54]} Re7 {[%emt 0:00:18]} 38. Bb2 {[%emt 0:00:51]} Qf7 {[%emt 0:00:55]} 39. Ka1 {[%emt 0:00:19]} Qf3 {[%emt 0:00:32]} 40. Qg3 {[%emt 0:00:43]} Qxg3 {[%emt 0:00:33]} 41. hxg3 {[%emt 0:00:02]} e5 {[%emt 0:00:27]} 42. Rd1 {[%emt 0:00:19]} Re8 {[%emt 0:00:32]} 43. Rd5 {[%emt 0:00:22]} Bc4 {[%emt 0:00:16]} 44. Rd7 {[%emt 0:00:26]} a5 {[%emt 0:00:10]} 45. bxa5 {[%emt 0:01:22]} Rc8 {[%emt 0:01:05]} 46. Nb7 {[%emt 0:00:31]} Ba6 {[%emt 0:00:30]} 47. Nd6 {[%emt 0:00:29]} Rc5 {[%emt 0:00:29]} 48. Ra7 {[%emt 0:00:34]} Bd3 {[%emt 0:00:11]} 49. Nf5 {[%emt 0:00:27]} Bxe4 {[%emt 0:00:18]} 50. Ne7+ {[%emt 0:00:08]} Kf7 {[%emt 0:00:23]} 51. Nc6+ {[%emt 0:00:31]} Ke6 {[%emt 0:00:18]} 52. Nxe5 {[%emt 0:00:43]} Rd5 {[%emt 0:01:13]} 53. Ka2 {[%emt 0:00:35]} Rd1 {[%emt 0:00:35]} 54. Bc3 {[%emt 0:00:26]} Bd6 {[%emt 0:00:20]} 55. Nf7 {[%emt 0:00:29]} Be7 {[%emt 0:00:39]} 56. Bb4 {[%emt 0:00:38]} Bxb4 {[%emt 0:00:33]} 57. axb4 {[%emt 0:00:02]} Bd5+ {[%emt 0:00:12]} 58. Ka3 {[%emt 0:00:35]} Ra1+ {[%emt 0:00:12]} 59. Kb2 {[%emt 0:00:01]} Ra2+ {[%emt 0:00:30]} 60. Kc3 {[%emt 0:00:11]} Rg2 {[%emt 0:00:24]} 61. Nd8+ {[%emt 0:01:26]} Kd6 {[%emt 0:01:06]} 62. Nf7+ {[%emt 0:00:16]} Kc6 {[%emt 0:00:28]} 63. Ra6+ {[%emt 0:00:53]} Kc7 {[%emt 0:00:18]} 64. Nd6 {[%emt 0:00:16]} Rxg3+ {[%emt 0:00:40]} 65. Kd4 {[%emt 0:00:09]} Bc6 {[%emt 0:00:34]} 66. b5 {[%emt 0:00:30]} Bd7 {[%emt 0:00:11] [#]} 67. Ne4 $2 {[%emt 0:01:12]} (67. b6+ $1 {mates} Kd8 68. Ra8+ Ke7 69. b7 Rg4+ 70. Ke3) 67... a3 {[%emt 0:00:53]} (67... Bxb5 {simplifies} 68. Nxg3 Bxa6 69. Kc3 Kc6) 68. Nc3 $1 {[%emt 0:00:17]} (68. Nxg3 $2 {perishes.} a2 69. Ke3 a1=Q $19) (68. Ra7+ $2 Kd8 69. Ra8+ (69. Nxg3 $2 a2 $19) 69... Ke7 $19) 68... Rg4+ {[%emt 0:00:32]} 69. Ke3 {[%emt 0:00:32]} Rxg5 {[%emt 0:00:32]} ({Much less strong is} 69... a2 70. b6+ Kb8 71. Nxa2 $16) 70. Ra7+ {[%emt 0:00:15]} Kc8 {[%emt 0:00:28]} (70... Kd6 $5 {[%cal Rd7b5]} 71. b6 (71. Ne4+ $2 Ke7 $19) 71... Bc6 $11) 71. b6 {[%emt 0:00:15]} Rc5 $2 {[%emt 0:00:18][%mdl 8192] [#]} (71... Bb5 $14) 72. Kd4 $2 {[%emt 0:00:15]} ({White must play} 72. a6 $1 $18 {[%cal Ra7a8]} Rxc3+ 73. Kd4) 72... Rc6 $11 {[%emt 0:00:09]} 73. Ra8+ {[%emt 0:00:16]} Kb7 {[%emt 0:00:04]} 74. Ra7+ {[%emt 0:00:02]} Kc8 {[%emt 0:00:03]} 75. Na2 {[%emt 0:02:07]} Be6 {[%emt 0:00:28]} 76. Nc3 {[%emt 0:00:27]} a2 {[%emt 0:01:24]} 77. Nxa2 {[%emt 0:00:14]} Bxa2 {[%emt 0:00:03]} 78. Rxg7 {[%emt 0:00:25]} Rc4+ {[%emt 0:00:30]} 79. Ke3 {[%emt 0:00:33]} Ra4 {[%emt 0:00:25]} 80. Rxh7 {[%emt 0:00:26]} Rxa5 {[%emt 0:00:06]} 81. Ra7 {[%emt 0:00:38]} Re5+ {[%emt 0:00:12]} 82. Kd4 {[%emt 0:00:09]} (82. Kf2 $5) 82... Re2 {[%emt 0:00:13]} 83. Kc5 {[%emt 0:00:14]} Rc2+ {[%emt 0:00:21]} 84. Kb5 {[%emt 0:00:37]} Kb8 {[%emt 0:02:09]} 85. Rc7 {[%emt 0:01:02]} Rf2 {[%emt 0:00:47]} (85... Rxc7 {simplifies} 86. bxc7+ Kxc7 87. Kc5 Bb1) 86. Rh7 {[%emt 0:00:28]} Bf7 {[%emt 0:00:26]} 87. Rh6 {[%emt 0:00:26]} Kb7 {[%emt 0:00:43]} 88. Kc5 {[%emt 0:00:13]} Rc2+ {[%emt 0:00:27]} 89. Kd4 {[%emt 0:00:07]} Be8 {[%emt 0:00:24]} 90. Kd3 {[%emt 0:00:05]} Rc1 {[%emt 0:00:19]} 91. Kd2 {[%emt 0:00:12]} Rc5 {[%emt 0:00:04]} 92. Rh3 {[%emt 0:00:42]} Bc6 {[%emt 0:00:08]} 93. Rb3 {[%emt 0:00:13]} Rh5 {[%emt 0:00:06]} 94. Rb4 {[%emt 0:00:11]} Bb5 {[%emt 0:00:04]} 95. Rf4 {[%emt 0:00:13]} Re5 {[%emt 0:00:15]} 96. Kc3 {[%emt 0:00:08]} Rd5 {[%emt 0:00:43]} 97. Rd4 {[%emt 0:00:01]} Rc5+ {[%emt 0:00:07]} (97... Rxd4 {simplifies} 98. Kxd4 Kxb6 99. Kc3 Be2) 98. Kd2 {[%emt 0:00:04]} Kxb6 {[%emt 0:00:04]} 99. Rd6+ {[%emt 0:00:11]} Bc6 {[%emt 0:00:07]} 100. Ke3 {[%emt 0:00:09]} Re5+ {[%emt 0:00:29]} 101. Kd4 {[%emt 0:00:09]} Re4+ {[%emt 0:00:05]} 102. Kd3 {[%emt 0:00:06]} Rf4 {[%emt 0:00:12]} 103. Ke3 {[%emt 0:00:12]} Rh4 {[%emt 0:00:15]} 104. Rf6 {[%emt 0:00:41]} Kc5 {[%emt 0:00:10]} 105. Rf4 {[%emt 0:00:23]} Rh3+ {[%emt 0:00:14]} 106. Kd2 {[%emt 0:00:28]} Bd5 {[%emt 0:00:34]} 107. Ke2 {[%emt 0:00:18]} Bc4+ {[%emt 0:00:39]} 108. Kd2 {[%emt 0:00:48]} Rd3+ {[%emt 0:01:09]} 109. Ke1 {[%emt 0:00:26]} Kd5 {[%emt 0:01:15]} 110. Rh4 {[%emt 0:00:51]} Rf3 {[%emt 0:00:14]} 111. Kd2 {[%emt 0:00:17]} Bd3 {[%emt 0:00:34]} 112. Rh8 {[%emt 0:01:15]} Be4 {[%emt 0:00:08]} 113. Rd8+ {[%emt 0:00:49]} Ke5 {[%emt 0:00:05]} 114. Re8+ {[%emt 0:00:10]} Kd4 {[%emt 0:00:04]} 115. Rd8+ {[%emt 0:00:10]} Bd5 {[%emt 0:00:04]} 116. Ke2 {[%emt 0:00:54]} Rf7 {[%emt 0:02:02]} 117. Kd2 {[%emt 0:00:21]} Rf2+ {[%emt 0:00:05]} 118. Ke1 {[%emt 0:00:18]} Ra2 {[%emt 0:00:10]} 119. Kd1 {[%emt 0:00:10]} Ke4 {[%emt 0:00:31]} 120. Kc1 {[%emt 0:00:33]} Rh2 {[%emt 0:00:39]} 121. Rd7 {[%emt 0:00:24]} Kd4 {[%emt 0:00:34]} 122. Kd1 {[%emt 0:00:09]} Kc4 {[%emt 0:00:47]} 123. Ke1 {[%emt 0:00:05]} Be4 {[%emt 0:00:52]} 124. Rd2 {[%emt 0:02:05]} Rh1+ {[%emt 0:00:36]} 125. Kf2 {[%emt 0:00:18]} Bd3 {[%emt 0:00:10]} 126. Ke3 {[%emt 0:00:55]} Re1+ {[%emt 0:01:12]} 127. Kf2 {[%emt 0:00:16]} Re8 {[%emt 0:00:07]} 128. Ra2 {[%emt 0:00:20]} Kd4 {[%emt 0:00:04]} 129. Ra4+ {[%emt 0:00:28]} Bc4 {[%emt 0:00:04]} 130. Kf3 {[%emt 0:00:40]} Rf8+ {[%emt 0:00:05]} 131. Kg4 {[%emt 0:00:19]} Kd5 {[%emt 0:00:16]} 132. Kg3 {[%emt 0:00:26]} Bd3 {[%emt 0:00:28]} 133. Rf4 {[%emt 0:00:21]} Bf5 {[%emt 0:00:06]} 134. Ra4 {[%emt 0:00:35]} Be4 {[%emt 0:00:16]} 135. Kg4 {[%emt 0:00:57]} Ke5 {[%emt 0:00:12]} 136. Ra5+ {[%emt 0:00:09]} Bd5 {[%emt 0:00:05]} 137. Kg5 {[%emt 0:00:12]} Rg8+ {[%emt 0:00:11]} 138. Kh5 {[%emt 0:00:05]} Ke4 {[%emt 0:06:03]} 139. Kh6 {[%emt 0:00:11]} Be6 {[%emt 0:00:47]} 140. Rg5 {[%emt 0:00:54]} Rf8 {[%emt 0:00:16]} 141. Kg7 {[%emt 0:00:53]} Rf1 {[%emt 0:01:26]} 142. Ra5 {[%emt 0:01:15]} Bd5 {[%emt 0:00:16]} 143. Kg6 {[%emt 0:00:40]} Ke5 {[%emt 0:00:31]} 144. Kg5 {[%emt 0:00:17]} Rf8 {[%emt 0:00:41]} 145. Rb5 $1 {[%emt 0:00:38]} Rg8+ {[%emt 0:00:36]} 146. Kh5 {[%emt 0:00:07]} Ke6 {[%emt 0:00:22]} 147. Kh4 {[%emt 0:00:10]} Be4 {[%emt 0:00:15]} 148. Rg5 {[%emt 0:00:08]} Rxg5 {[%emt 0:00:03]} 149. Kxg5 1/2-1/2